bitfinex/quotes_BTCUSD_20241222
["timestamp","ask_amount","ask_price","bid_price","bid_amount"]
[1734830364652,0.67340078,97259.0,97258.0,5.7e-07]
[1734830365945,0.67340078,97259.0,97258.0,8.637e-05]
[1734830367145,0.35617649,97259.0,97258.0,8.637e-05]
[1734830368308,0.30310339,97259.0,97258.0,8.637e-05]
[1734830369076,0.35617649,97259.0,97258.0,8.637e-05]
[1734830369277,0.30310339,97259.0,97258.0,8.637e-05]
[1734830370764,0.03121182,97259.0,97258.0,8.637e-05]
[1734830371378,0.03121182,97259.0,97258.0,0.07778637]
[1734830371379,0.08428492,97259.0,97258.0,0.07778637]
[1734830372294,0.02721182,97259.0,97258.0,0.07778637]
[1734830372591,0.07328492,97259.0,97258.0,0.07778637]
[1734830372948,0.07528492,97259.0,97258.0,0.07778637]
[1734830373155,0.02221182,97259.0,97258.0,0.07778637]
[1734830373792,0.003,97259.0,97258.0,0.07778637]
[1734830374147,0.003,97259.0,97258.0,0.12648637]
[1734830374754,0.002,97259.0,97258.0,0.12648637]
[1734830374952,0.003,97259.0,97258.0,0.12648637]
[1734830375525,0.0530731,97267.0,97259.0,0.205636]
[1734830376329,0.0530731,97267.0,97259.0,0.411272]
[1734830376536,0.0001716,97271.0,97259.0,0.411272]
[1734830376714,0.0530731,97267.0,97259.0,0.411272]
[1734830376929,0.0001716,97271.0,97259.0,0.412272]
[1734830377225,0.0001716,97271.0,97264.0,0.205624]
[1734830377446,0.0001716,97271.0,97265.0,0.1264]
[1734830377864,0.0532447,97271.0,97265.0,0.1264]
[1734830378677,0.0542447,97271.0,97265.0,0.1264]
[1734830379331,0.01921697,97270.0,97265.0,0.1264]
[1734830380481,0.0542447,97271.0,97265.0,0.1264]
[1734830381189,0.0552447,97271.0,97265.0,0.1264]
[1734830381922,0.0552447,97271.0,97266.0,0.205621]
[1734830382122,0.0021716,97271.0,97266.0,0.205621]
[1734830382324,0.0001716,97271.0,97266.0,0.205621]
[1734830382876,0.0532447,97271.0,97266.0,0.411242]
[1734830383073,0.0532447,97271.0,97266.0,0.414242]
[1734830383474,0.0001716,97271.0,97266.0,0.411242]
[1734830383717,0.0001716,97271.0,97266.0,0.414242]
[1734830383919,0.0001716,97271.0,97266.0,0.411242]
[1734830384336,0.0532447,97271.0,97266.0,0.003]
[1734830384537,0.0532447,97271.0,97266.0,0.005]
[1734830385331,0.411226,97270.0,97266.0,0.003]
[1734830385533,0.0532447,97271.0,97258.0,8.637e-05]
[1734830385534,0.0530731,97267.0,97258.0,8.637e-05]
[1734830385734,0.411243,97266.0,97258.0,8.637e-05]
[1734830386136,0.205636,97260.0,97258.0,8.637e-05]
[1734830386368,0.2586991,97264.0,97258.0,8.637e-05]
[1734830386570,0.01921697,97263.0,97258.0,8.637e-05]
[1734830387002,0.0530731,97264.0,97258.0,8.637e-05]
[1734830387203,0.0530731,97268.0,97258.0,8.637e-05]
[1734830387408,0.0530731,97264.0,97259.0,0.205636]
[1734830387734,0.0550731,97264.0,97259.0,0.205636]
[1734830387890,0.0550731,97264.0,97258.0,8.637e-05]
[1734830388839,0.205628,97263.0,97258.0,8.637e-05]
[1734830389055,0.205628,97263.0,97258.0,0.00208637]
[1734830389211,0.205628,97263.0,97258.0,0.00108637]
[1734830389596,0.205628,97263.0,97258.0,0.00208637]
[1734830389792,0.205628,97263.0,97258.0,0.00108637]
[1734830390221,0.205628,97263.0,97258.0,8.637e-05]
[1734830390393,0.411256,97263.0,97258.0,8.637e-05]
[1734830390596,0.413256,97263.0,97258.0,8.637e-05]
[1734830391824,0.411256,97263.0,97258.0,8.637e-05]
[1734830392349,0.412256,97263.0,97258.0,8.637e-05]
[1734830392880,0.413256,97263.0,97258.0,8.637e-05]
[1734830392999,0.411256,97263.0,97258.0,8.637e-05]
[1734830393207,0.208628,97263.0,97258.0,8.637e-05]
[1734830393609,0.004,97263.0,97258.0,8.637e-05]
[1734830394045,0.0530731,97264.0,97258.0,8.637e-05]
[1734830394269,0.206628,97263.0,97258.0,8.637e-05]
[1734830394696,0.0530731,97264.0,97258.0,8.637e-05]
[1734830395253,0.205628,97263.0,97258.0,8.637e-05]
[1734830395601,0.412256,97263.0,97258.0,8.637e-05]
[1734830395832,0.0530731,97264.0,97258.0,8.637e-05]
[1734830396043,0.0540731,97264.0,97258.0,8.637e-05]
[1734830396199,0.0530731,97264.0,97258.0,8.637e-05]
[1734830397101,0.0540731,97264.0,97258.0,8.637e-05]
[1734830397309,0.0540731,97264.0,97259.0,0.0826]
[1734830399072,0.0530731,97264.0,97259.0,0.0826]
[1734830399274,0.0540731,97264.0,97259.0,0.0826]
[1734830399480,0.001,97264.0,97259.0,0.0826]
[1734830400488,0.0011714,97264.0,97259.0,0.0826]
[1734830401705,0.0542445,97264.0,97259.0,0.288236]
[1734830401909,0.0542445,97264.0,97259.0,0.0826]
[1734830402451,0.2598705,97264.0,97259.0,0.0826]
[1734830402661,0.205628,97263.0,97258.0,8.637e-05]
[1734830402862,0.0542445,97264.0,97258.0,8.637e-05]
[1734830403063,0.0532445,97264.0,97258.0,8.637e-05]
[1734830404339,0.0532445,97264.0,97258.0,0.20572237]
[1734830404551,0.0532445,97264.0,97258.0,8.637e-05]
[1734830405145,0.0542445,97264.0,97258.0,8.637e-05]
[1734830405579,0.0011714,97264.0,97258.0,0.20572337]
[1734830405794,0.0011714,97264.0,97262.0,0.205628]
[1734830406414,0.0011714,97264.0,97263.0,0.0836281]
[1734830406819,0.0001714,97264.0,97263.0,0.0836281]
[1734830407984,0.0001714,97264.0,97263.0,0.0856281]
[1734830408191,0.0011714,97264.0,97263.0,0.0856281]
[1734830408345,0.0001714,97264.0,97263.0,0.0856281]
[1734830409183,0.0001714,97264.0,97263.0,0.0886281]
[1734830409427,0.0001714,97264.0,97263.0,0.0836281]
[1734830409606,0.0001714,97264.0,97259.0,0.205636]
[1734830409760,0.0011714,97264.0,97263.0,0.006]
[1734830409958,0.0001714,97264.0,97263.0,0.002]
[1734830410168,0.0001714,97264.0,97261.0,0.205632]
[1734830410390,0.0001714,97264.0,97262.0,0.00102803]
[1734830410591,0.0001714,97264.0,97263.0,0.00302803]
[1734830410967,0.0001714,97264.0,97263.0,0.00102803]
[1734830411330,0.0011714,97264.0,97263.0,0.00502803]
[1734830411535,0.0011714,97264.0,97263.0,0.00102803]
[1734830411819,0.0021714,97264.0,97263.0,0.21065602]
[1734830411986,0.0021714,97264.0,97263.0,0.209628]
[1734830412847,0.0021714,97264.0,97263.0,0.212628]
[1734830414634,0.0021714,97264.0,97263.0,0.258228]
[1734830414839,0.0021714,97264.0,97263.0,0.4420364]
[1734830416881,0.0021714,97264.0,97263.0,0.96677813]
[1734830417163,0.0021714,97264.0,97263.0,1.83290503]
[1734830418155,0.0001714,97264.0,97263.0,1.82890503]
[1734830418392,0.0011714,97264.0,97263.0,1.64912329]
[1734830418565,0.0011714,97264.0,97263.0,1.64612329]
[1734830418778,0.0011714,97264.0,97263.0,1.64812329]
[1734830419179,0.0001714,97264.0,97263.0,1.64212329]
[1734830419657,0.0011714,97264.0,97263.0,1.65112329]
[1734830420590,0.0011714,97264.0,97263.0,1.88191015]
[1734830421981,0.0011714,97264.0,97263.0,1.65112329]
[1734830423238,0.0011714,97264.0,97263.0,1.8356723]
[1734830425884,0.0011714,97264.0,97263.0,1.65112329]
[1734830426782,0.0806,97315.0,97298.0,0.205554]
[1734830427023,8.57e-05,97321.0,97298.0,0.6267893]
[1734830427242,8.57e-05,97321.0,97298.0,0.6947893]
[1734830428132,0.00133412,97299.0,97298.0,0.6997893]
[1734830428342,0.00133412,97299.0,97298.0,0.6947893]
[1734830428524,0.00133412,97299.0,97298.0,0.6967893]
[1734830428763,0.00233412,97299.0,97298.0,0.7017893]
[1734830428991,0.00233412,97299.0,97298.0,0.71206887]
[1734830429230,0.00233412,97299.0,97298.0,0.64406887]
[1734830430660,0.00233412,97299.0,97298.0,0.32414197]
[1734830430874,0.00233412,97299.0,97298.0,0.22283357]
[1734830431405,0.00233412,97299.0,97298.0,0.01727957]
[1734830431620,0.00233412,97299.0,97298.0,0.007]
[1734830434702,0.07763412,97299.0,97298.0,0.007]
[1734830435107,0.13070722,97299.0,97298.0,0.007]
[1734830435517,0.17710722,97299.0,97298.0,0.007]
[1734830435735,0.17710722,97299.0,97298.0,0.005]
[1734830436139,0.17710722,97299.0,97298.0,0.006]
[1734830436344,0.17610722,97299.0,97298.0,0.006]
[1734830436555,0.17510722,97299.0,97298.0,0.001]
[1734830436779,0.17610722,97299.0,97298.0,0.001]
[1734830437008,0.42641562,97299.0,97298.0,0.001]
[1734830437430,0.0753,97284.0,97272.0,0.20672162]
[1734830437636,0.205585,97283.0,97272.0,0.00111362]
[1734830437833,0.0753,97284.0,97272.0,0.2056937]
[1734830439373,0.0753,97284.0,97273.0,0.00102791]
[1734830439570,0.0530731,97292.0,97285.0,0.20558]
[1734830439785,0.0530731,97292.0,97279.0,0.205592]
[1734830439960,0.001,97284.0,97279.0,0.205592]
[1734830440130,0.0530731,97292.0,97279.0,0.205592]
[1734830441125,0.1283731,97293.0,97284.0,0.205583]
[1734830441277,0.0550731,97292.0,97284.0,0.205583]
[1734830441476,0.002,97292.0,97284.0,0.205583]
[1734830441679,0.003,97292.0,97284.0,0.205583]
[1734830441883,0.0560731,97292.0,97280.0,0.205591]
[1734830442263,0.0550731,97292.0,97280.0,0.205591]
[1734830442456,0.0560731,97292.0,97280.0,0.205591]
[1734830442727,0.0540731,97292.0,97280.0,0.205591]
[1734830443010,0.0570731,97292.0,97280.0,0.205591]
[1734830443242,0.0570731,97292.0,97272.0,0.1013941]
[1734830443444,0.205568,97291.0,97275.0,0.205602]
[1734830444029,0.205568,97291.0,97276.0,0.00102789]
[1734830444260,0.205568,97291.0,97277.0,0.205598]
[1734830444769,0.206568,97291.0,97277.0,0.205598]
[1734830445278,0.001,97291.0,97277.0,0.205598]
[1734830445425,0.206569,97291.0,97277.0,0.205598]
[1734830445646,0.207569,97291.0,97277.0,0.205598]
[1734830445861,0.206569,97291.0,97277.0,0.205598]
[1734830446083,0.001,97291.0,97272.0,8.57e-05]
[1734830446317,0.003,97291.0,97286.0,0.205577]
[1734830446581,0.001,97291.0,97283.0,0.205585]
[1734830447184,0.0753,97293.0,97288.0,0.205573]
[1734830448784,0.0753,97293.0,97288.0,0.206573]
[1734830449212,0.001,97291.0,97288.0,0.412148]
[1734830450058,0.001,97291.0,97288.0,0.411148]
[1734830450264,0.001,97291.0,97288.0,0.207573]
[1734830450453,0.0753,97293.0,97288.0,0.206573]
[1734830450863,0.0753,97293.0,97288.0,0.209573]
[1734830451226,0.0753,97293.0,97288.0,0.208573]
[1734830451452,0.0753,97293.0,97288.0,0.003]
[1734830451674,0.0753,97293.0,97288.0,0.004]
[1734830452275,0.0753,97293.0,97288.0,0.001]
[1734830452477,0.0753,97293.0,97288.0,0.003]
[1734830452757,0.0753,97293.0,97289.0,0.205573]
[1734830453276,0.0753,97293.0,97289.0,0.411146]
[1734830453871,0.0753,97293.0,97289.0,0.412146]
[1734830454075,0.00033412,97299.0,97289.0,0.414146]
[1734830454280,0.00033412,97299.0,97289.0,0.208573]
[1734830455281,0.00033412,97299.0,97289.0,0.206573]
[1734830455477,0.205554,97298.0,97284.0,0.21594448]
[1734830455741,0.205554,97298.0,97286.0,0.205579]
[1734830455916,0.00133412,97299.0,97287.0,0.00102778]
[1734830456127,0.00133412,97299.0,97288.0,0.205575]
[1734830456862,0.00033412,97299.0,97288.0,0.205575]
[1734830457474,0.0001714,97293.0,97288.0,0.205575]
[1734830459652,0.0001714,97293.0,97288.0,0.41115]
[1734830459999,0.0001714,97293.0,97290.0,0.20557]
[1734830460143,0.0001714,97293.0,97292.0,0.205566]
[1734830461655,0.0001714,97293.0,97292.0,0.207566]
[1734830462089,0.0001714,97293.0,97292.0,0.3088744]
[1734830462510,0.0001714,97293.0,97292.0,0.4368744]
[1734830462708,0.0001714,97293.0,97292.0,0.3318744]
[1734830462919,0.0001714,97293.0,97292.0,0.3298744]
[1734830463120,0.0001714,97293.0,97292.0,0.3318744]
[1734830463385,0.0001714,97293.0,97292.0,0.3368744]
[1734830463585,0.0001714,97293.0,97292.0,0.3348744]
[1734830463786,0.0001714,97293.0,97292.0,0.3408744]
[1734830464022,0.0001714,97293.0,97292.0,0.4428744]
[1734830464231,0.0001714,97293.0,97292.0,0.4318744]
[1734830464439,0.0001714,97293.0,97292.0,0.7034013]
[1734830464671,0.0001714,97293.0,97292.0,0.7533013]
[1734830464877,0.0001714,97293.0,97292.0,0.7553013]
[1734830465491,0.0001714,97293.0,97292.0,0.89945867]
[1734830465695,0.0001714,97293.0,97292.0,0.89345867]
[1734830465920,0.0001714,97293.0,97292.0,0.89145867]
[1734830466127,0.0011714,97293.0,97292.0,0.90045867]
[1734830466304,0.0011714,97293.0,97292.0,0.90445867]
[1734830466639,0.0011714,97293.0,97292.0,0.90045867]
[1734830467092,0.0011714,97293.0,97292.0,1.24483917]
[1734830467311,0.0001714,97293.0,97292.0,1.23583917]
[1734830467533,0.0001714,97293.0,97292.0,1.23183917]
[1734830467740,0.0001714,97293.0,97292.0,1.23583917]
[1734830468291,0.0001714,97293.0,97292.0,1.78203917]
[1734830468484,0.0011714,97293.0,97292.0,1.79103917]
[1734830469109,0.0011714,97293.0,97292.0,1.78703917]
[1734830469432,0.0011714,97293.0,97292.0,1.79103917]
[1734830469861,0.0011714,97293.0,97292.0,1.78703917]
[1734830470373,0.0011714,97293.0,97292.0,1.6528818]
[1734830471296,0.00033412,97299.0,97298.0,1.1932809]
[1734830471500,0.00033412,97299.0,97298.0,1.2945893]
[1734830472458,1.2e-07,97299.0,97298.0,1.2945893]
[1734830472661,8.57e-05,97321.0,97320.0,0.5486339]
[1734830472833,0.00062911,97321.0,97320.0,0.6729423]
[1734830473953,0.00062911,97321.0,97320.0,1.2191423]
[1734830474157,8.58e-05,97323.0,97322.0,0.6240299]
[1734830474374,8.58e-05,97323.0,97322.0,0.7483383]
[1734830474581,8e-07,97323.0,97322.0,0.7483383]
[1734830476244,8e-07,97323.0,97322.0,0.7573383]
[1734830476389,8e-07,97323.0,97322.0,1.0887188]
[1734830476591,8.57e-05,97357.0,97350.0,0.0469269]
[1734830476776,0.00024869,97357.0,97356.0,0.205431]
[1734830477184,0.00024869,97357.0,97356.0,0.4067394]
[1734830477853,0.0001,97409.0,97387.0,0.205364]
[1734830478056,0.00033429,97391.0,97389.0,0.205362]
[1734830478262,0.00033429,97391.0,97390.0,0.9684619]
[1734830478471,0.0001,97409.0,97407.0,0.15]
[1734830478694,0.0001,97409.0,97408.0,0.50458273]
[1734830478889,0.0001,97409.0,97408.0,0.6265563]
[1734830479139,0.0001714,97421.0,97420.0,0.205296]
[1734830479351,0.00071427,97421.0,97420.0,0.3066044]
[1734830480494,0.00071427,97421.0,97420.0,0.001]
[1734830480728,0.00071427,97421.0,97420.0,0.01]
[1734830481449,0.00071427,97421.0,97420.0,0.009]
[1734830481949,0.00071427,97421.0,97418.0,0.00102639]
[1734830482331,0.205378,97429.0,97413.0,0.00102639]
[1734830482539,0.0764,97428.0,97413.0,0.00102639]
[1734830482741,0.0764,97428.0,97420.0,0.004]
[1734830483203,0.0764,97428.0,97413.0,0.00102639]
[1734830483322,0.0764,97428.0,97414.0,0.205309]
[1734830483525,0.0764,97428.0,97415.0,0.0010264]
[1734830483739,0.0764,97428.0,97416.0,0.205304]
[1734830483946,0.0764,97428.0,97417.0,0.00102639]
[1734830484303,0.0764,97428.0,97424.0,0.205287]
[1734830484935,0.00026276,97429.0,97424.0,0.410574]
[1734830485150,0.00026276,97429.0,97425.0,0.0010263]
[1734830486396,0.00026276,97429.0,97425.0,0.0020263]
[1734830487019,0.00026276,97429.0,97425.0,0.001]
[1734830487866,0.00026276,97429.0,97426.0,0.00102635]
[1734830488291,0.00026276,97429.0,97418.0,0.00102635]
[1734830488468,0.00026276,97429.0,97419.0,0.00102635]
[1734830488678,0.00026276,97429.0,97422.0,0.20529]
[1734830489261,0.205281,97428.0,97418.0,0.001]
[1734830489778,0.205281,97428.0,97410.0,0.205317]
[1734830490006,0.205281,97428.0,97412.0,0.205313]
[1734830490217,0.00026276,97429.0,97422.0,0.205291]
[1734830491027,0.00026276,97429.0,97406.0,0.1013084]
[1734830491313,0.00026276,97429.0,97418.0,0.2053]
[1734830491690,0.00026276,97429.0,97412.0,0.410626]
[1734830491897,0.00026276,97429.0,97414.0,0.205309]
[1734830492120,0.00026276,97429.0,97415.0,0.00102642]
[1734830492712,0.00026276,97429.0,97418.0,0.001]
[1734830493122,0.20554176,97429.0,97418.0,0.001]
[1734830493351,8.56e-05,97428.0,97418.0,0.001]
[1734830494331,8.56e-05,97428.0,97407.0,0.205324]
[1734830494531,0.0797,97426.0,97408.0,0.205321]
[1734830494741,0.0797,97426.0,97413.0,0.205309]
[1734830495747,0.0797,97426.0,97402.0,0.05734054]
[1734830495952,0.0797,97426.0,97403.0,0.10233487]
[1734830496813,0.0797,97426.0,97414.0,0.205308]
[1734830497131,0.0797,97426.0,97420.0,0.205295]
[1734830497336,0.0797,97426.0,97403.0,0.1013084]
[1734830497545,0.0797,97426.0,97404.0,0.00102647]
[1734830497750,0.0797,97426.0,97404.0,0.10233487]
[1734830498151,0.0797,97426.0,97405.0,0.1013084]
[1734830498466,0.0797,97426.0,97406.0,0.00102645]
[1734830498676,0.0797,97426.0,97419.0,0.205296]
[1734830498943,0.0797,97426.0,97424.0,0.205286]
[1734830500313,8.56e-05,97428.0,97424.0,0.410572]
[1734830501345,0.0817,97436.0,97422.0,0.20529]
[1734830501552,0.0817,97436.0,97434.0,0.205266]
[1734830502211,0.0817,97436.0,97423.0,0.20529]
[1734830502413,0.0817,97436.0,97430.0,0.205275]
[1734830502767,0.0817,97436.0,97434.0,0.002]
[1734830503141,0.0817,97436.0,97430.0,0.205275]
[1734830503968,0.0817,97436.0,97417.0,0.01063302]
[1734830504121,0.0530731,97430.0,97417.0,0.00016276]
[1734830504329,0.0530731,97430.0,97423.0,0.002]
[1734830504743,0.0530731,97430.0,97417.0,0.20546376]
[1734830505568,0.205277,97429.0,97417.0,0.20546376]
[1734830505763,0.205277,97429.0,97417.0,0.00016276]
[1734830505943,0.205277,97429.0,97417.0,0.00316276]
[1734830506311,0.205277,97429.0,97423.0,0.005]
[1734830506521,0.205288,97424.0,97423.0,0.005]
[1734830506727,0.3380611,97424.0,97423.0,0.005]
[1734830507059,0.4393695,97424.0,97423.0,0.005]
[1734830507868,0.3380731,97418.0,97417.0,0.00216276]
[1734830508080,0.3380731,97418.0,97417.0,0.00516276]
[1734830508278,0.4393815,97418.0,97417.0,0.00516276]
[1734830508940,0.4393815,97418.0,97417.0,0.00016276]
[1734830509153,0.4393815,97418.0,97417.0,0.00116276]
[1734830509792,0.4393815,97418.0,97417.0,0.00516276]
[1734830510719,0.0797,97418.0,97417.0,0.00516276]
[1734830510891,0.0797,97418.0,97417.0,0.00016276]
[1734830511099,0.0797,97418.0,97417.0,0.00116276]
[1734830511299,0.1327731,97418.0,97417.0,0.00116276]
[1734830511519,0.1327731,97418.0,97417.0,0.00316276]
[1734830511725,0.1327731,97418.0,97417.0,0.00016276]
[1734830512087,0.1327731,97418.0,97417.0,0.00116276]
[1734830512287,0.1327731,97418.0,97417.0,0.00016276]
[1734830512533,0.0797,97418.0,97417.0,0.00016276]
[1734830512935,0.0753,97429.0,97418.0,0.2053]
[1734830513484,0.0753,97429.0,97424.0,0.205287]
[1734830513894,0.0530731,97427.0,97424.0,0.205287]
[1734830514099,0.0530731,97427.0,97419.0,0.205298]
[1734830514305,0.0753,97429.0,97419.0,0.205298]
[1734830514509,0.0753,97429.0,97424.0,0.205287]
[1734830514716,0.0753,97429.0,97420.0,0.205296]
[1734830518156,0.0753,97429.0,97421.0,0.205294]
[1734830519719,8.56e-05,97430.0,97426.0,0.205282]
[1734830520711,8.56e-05,97430.0,97421.0,0.205294]
[1734830521076,8.56e-05,97430.0,97426.0,0.001]
[1734830521496,8.56e-05,97430.0,97417.0,0.00033396]
[1734830521706,8.56e-05,97430.0,97426.0,0.003]
[1734830521914,8.56e-05,97430.0,97421.0,0.003]
[1734830522109,8.56e-05,97430.0,97426.0,0.002]
[1734830522519,8.56e-05,97430.0,97422.0,0.205292]
[1734830522937,8.56e-05,97430.0,97421.0,0.003]
[1734830523140,8.56e-05,97430.0,97417.0,0.00033396]
[1734830523463,8.56e-05,97430.0,97418.0,0.2053]
[1734830523825,8.56e-05,97430.0,97418.0,0.4106]
[1734830524031,8.56e-05,97430.0,97421.0,0.001]
[1734830524243,8.56e-05,97430.0,97422.0,0.20631841]
[1734830524443,8.56e-05,97430.0,97423.0,0.00102633]
[1734830524689,8.56e-05,97430.0,97425.0,0.205285]
[1734830525208,8.56e-05,97430.0,97425.0,0.41057]
[1734830525338,8.56e-05,97430.0,97425.0,0.205285]
[1734830526370,0.2583501,97429.0,97422.0,0.10036128]
[1734830526632,0.1361731,97423.0,97422.0,0.10036128]
[1734830526810,0.2374815,97423.0,97422.0,0.09136128]
[1734830527017,0.3874815,97423.0,97422.0,0.09136128]
[1734830527599,0.3874815,97423.0,97422.0,0.09536128]
[1734830528008,0.3874815,97423.0,97422.0,0.09136128]
[1734830528220,0.3874815,97423.0,97422.0,0.09236128]
[1734830528747,0.3874815,97423.0,97422.0,0.001]
[1734830530034,0.3874815,97423.0,97418.0,0.0001712]
[1734830530259,0.22575975,97424.0,97418.0,0.0001712]
[1734830530260,0.1361731,97419.0,97418.0,0.0001712]
[1734830530437,0.2374815,97419.0,97418.0,0.0001712]
[1734830534143,0.5363815,97419.0,97418.0,0.0001712]
[1734830534923,0.56793541,97419.0,97418.0,0.0001712]
[1734830535897,0.57812429,97419.0,97418.0,0.0001712]
[1734830536097,0.84761697,97419.0,97418.0,0.0001712]
[1734830536301,0.94761697,97419.0,97418.0,0.0001712]
[1734830537057,0.97829159,97419.0,97418.0,0.0011712]
[1734830537284,0.94674597,97419.0,97418.0,0.0011712]
[1734830537439,1.16249452,97419.0,97418.0,0.0011712]
[1734830538227,1.13095475,97419.0,97418.0,0.0011712]
[1734830538610,1.03095475,97419.0,97418.0,0.0011712]
[1734830538842,1.13095475,97419.0,97418.0,0.0011712]
[1734830539445,0.93095475,97419.0,97418.0,0.0011712]
[1734830539834,0.93095475,97419.0,97418.0,0.0001712]
[1734830539835,0.66966377,97419.0,97418.0,0.0001712]
[1734830540041,0.72186587,97419.0,97418.0,0.0001712]
[1734830540247,0.2366105,97419.0,97418.0,0.0011712]
[1734830540456,0.2366105,97419.0,97418.0,0.0001712]
[1734830540838,0.2366105,97419.0,97418.0,0.0011712]
[1734830541142,0.2366961,97419.0,97418.0,0.0001712]
[1734830542721,0.3866961,97419.0,97418.0,0.0001712]
[1734830544232,0.39693279,97419.0,97418.0,0.0001712]
[1734830544433,0.39693279,97419.0,97418.0,0.0011712]
[1734830544694,0.3866961,97419.0,97418.0,0.0011712]
[1734830545873,0.3866961,97419.0,97418.0,0.0001712]
[1734830546097,0.3866961,97419.0,97418.0,0.0011712]
[1734830546255,0.3866961,97419.0,97418.0,0.0001712]
[1734830546712,0.3866961,97419.0,97418.0,0.0011712]
[1734830552132,0.2366961,97419.0,97418.0,0.0011712]
[1734830552964,0.2366961,97419.0,97418.0,0.0001712]
[1734830553368,0.2366961,97419.0,97418.0,0.0011712]
[1734830553593,0.2366961,97419.0,97418.0,0.0001712]
[1734830558910,0.2853961,97419.0,97418.0,0.0001712]
[1734830560388,0.44564856,97419.0,97418.0,0.0001712]
[1734830561297,0.47725839,97419.0,97418.0,0.0001712]
[1734830561474,0.44564856,97419.0,97418.0,0.0001712]
[1734830561673,0.47725808,97419.0,97418.0,0.0001712]
[1734830562016,0.47725791,97419.0,97418.0,0.0001712]
[1734830562249,0.3553,97418.0,97417.0,0.00026063]
[1734830562433,0.4566084,97418.0,97417.0,0.00026063]
[1734830562829,0.5088105,97418.0,97417.0,0.00026063]
[1734830563891,0.54041882,97418.0,97417.0,0.00026063]
[1734830566191,0.5088105,97418.0,97417.0,0.00026063]
[1734830566391,0.2575021,97418.0,97417.0,0.00026063]
[1734830575810,0.2053,97418.0,97417.0,0.00026063]
[1734830576655,0.2575878,97418.0,97417.0,0.00026063]
[1734830576887,8.57e-05,97418.0,97417.0,0.00026063]
[1734830580164,8.57e-05,97418.0,97417.0,0.00126063]
[1734830584681,8.57e-05,97418.0,97417.0,0.07706063]
[1734830584993,8.57e-05,97418.0,97417.0,0.12346063]
[1734830585405,8.57e-05,97418.0,97417.0,0.12448705]
[1734830585573,8.57e-05,97418.0,97417.0,0.22579545]
[1734830585779,8.57e-05,97418.0,97417.0,0.22476903]
[1734830586310,8.57e-05,97418.0,97417.0,0.22376903]
[1734830586655,8.57e-05,97418.0,97417.0,0.22476903]
[1734830587036,8.57e-05,97418.0,97417.0,0.31513031]
[1734830587239,8.57e-05,97418.0,97417.0,0.31913031]
[1734830588118,8.57e-05,97418.0,97417.0,0.32013031]
[1734830588500,8.57e-05,97418.0,97417.0,0.22876903]
[1734830588699,8.57e-05,97418.0,97417.0,0.22476903]
[1734830588907,8.57e-05,97418.0,97417.0,0.22976903]
[1734830589111,8.57e-05,97418.0,97417.0,0.22476903]
[1734830589326,8.57e-05,97418.0,97417.0,0.22376903]
[1734830589540,8.57e-05,97418.0,97417.0,0.22876903]
[1734830589682,8.57e-05,97418.0,97417.0,0.22476903]
[1734830590079,8.57e-05,97418.0,97417.0,0.22876903]
[1734830590275,8.57e-05,97418.0,97417.0,0.22476903]
[1734830590502,8.57e-05,97418.0,97417.0,0.22876903]
[1734830591046,8.57e-05,97418.0,97417.0,0.22776903]
[1734830591215,8.57e-05,97418.0,97417.0,0.22876903]
[1734830591837,8.57e-05,97418.0,97417.0,0.22376903]
[1734830592016,8.57e-05,97418.0,97417.0,0.22576903]
[1734830592244,8.57e-05,97418.0,97417.0,0.35376903]
[1734830592434,8.57e-05,97418.0,97417.0,0.34876903]
[1734830592638,8.57e-05,97418.0,97417.0,0.35476903]
[1734830592946,8.57e-05,97418.0,97417.0,0.34676903]
[1734830593673,8.57e-05,97418.0,97417.0,0.25576903]
[1734830593883,8.57e-05,97418.0,97417.0,0.35576903]
[1734830594500,8.57e-05,97418.0,97417.0,0.90196903]
[1734830594701,8.57e-05,97418.0,97417.0,0.90496903]
[1734830594928,8.57e-05,97418.0,97417.0,0.89596903]
[1734830595131,8.57e-05,97418.0,97417.0,0.90096903]
[1734830595496,8.57e-05,97418.0,97417.0,0.89596903]
[1734830595657,8.57e-05,97418.0,97417.0,0.90396903]
[1734830596179,8.57e-05,97418.0,97417.0,0.90896903]
[1734830596391,8.57e-05,97418.0,97417.0,0.91196903]
[1734830596595,8.57e-05,97418.0,97417.0,0.89596903]
[1734830596796,8.57e-05,97418.0,97417.0,0.80396903]
[1734830597221,8.57e-05,97418.0,97417.0,0.90396903]
[1734830597630,8.57e-05,97418.0,97417.0,0.90096903]
[1734830598225,8.57e-05,97418.0,97417.0,0.90396903]
[1734830598662,8.57e-05,97418.0,97417.0,0.78096903]
[1734830599638,8.57e-05,97418.0,97417.0,0.70516903]
[1734830600645,8.57e-05,97418.0,97417.0,0.15896903]
[1734830600873,8.57e-05,97418.0,97417.0,0.15999533]
[1734830607150,8.57e-05,97418.0,97417.0,0.20779323]
[1734830607327,8.57e-05,97418.0,97417.0,0.43756693]
[1734830612675,8.57e-05,97418.0,97417.0,0.98376693]
[1734830614773,8.57e-05,97418.0,97417.0,0.85516903]
[1734830617531,8.57e-05,97418.0,97417.0,0.90296693]
[1734830618152,8.57e-05,97418.0,97417.0,0.99432821]
[1734830619054,8.57e-05,97418.0,97417.0,0.90296693]
[1734830620178,8.57e-05,97418.0,97417.0,1.37979514]
[1734830621403,8.57e-05,97418.0,97417.0,1.24275322]
[1734830621607,8.57e-05,97418.0,97417.0,1.19495532]
[1734830621830,8.57e-05,97418.0,97417.0,1.04495532]
[1734830622008,8.57e-05,97418.0,97417.0,0.99855532]
[1734830623030,8.57e-05,97418.0,97417.0,0.99555532]
[1734830623185,8.57e-05,97418.0,97417.0,0.98755532]
[1734830623531,8.57e-05,97418.0,97417.0,0.99755532]
[1734830623735,8.57e-05,97418.0,97417.0,0.99455532]
[1734830623937,8.57e-05,97418.0,97417.0,0.65476903]
[1734830624075,8.57e-05,97418.0,97417.0,0.65076903]
[1734830624480,8.57e-05,97418.0,97417.0,0.10856903]
[1734830624687,8.57e-05,97418.0,97417.0,0.00726063]
[1734830624918,8.57e-05,97418.0,97417.0,0.008287]
[1734830625460,8.57e-05,97418.0,97417.0,0.1464825]
[1734830625982,8.57e-05,97418.0,97417.0,0.1484825]
[1734830626181,8.57e-05,97418.0,97417.0,0.1414825]
[1734830626356,8.57e-05,97418.0,97417.0,0.1394825]
[1734830626531,8.57e-05,97418.0,97417.0,0.1464825]
[1734830626957,8.57e-05,97418.0,97417.0,0.008287]
[1734830627181,8.57e-05,97418.0,97417.0,0.001287]
[1734830627404,8.57e-05,97418.0,97417.0,0.002287]
[1734830627786,0.0825857,97418.0,97417.0,0.005287]
[1734830627995,0.0825857,97418.0,97417.0,0.00426063]
[1734830629366,8.57e-05,97418.0,97417.0,0.00426063]
[1734830629559,8.57e-05,97418.0,97417.0,0.00528701]
[1734830632274,8.57e-05,97418.0,97417.0,0.09752545]
[1734830632678,8.57e-05,97418.0,97417.0,0.19883385]